Cogmind - Beta 13 @@@ ROGUE MODE // 2024.05.03 @ 01:02:03 Player: Bzilon Result: Destroyed by S-10 Pest with Light Assault Rifle Performance ------------- Evolutions (1) 500 Regions Visited (2) 400 Robots Destroyed (33) 165 Value Destroyed (579) 579 Prototype IDs (1) 20 Alien Tech Used (0) 0 Bonus (0) 0 TOTAL SCORE: 1664 Bonus ------- None Cogmind --------- Core Integrity 0/400 Matter 189/300 Energy 91/100 System Corruption 0% Temperature Cool (0) Movement Core (800) Ox15 Location -9/Materials Parts ------- > --- POWER (1) -------- (None) > --- PROPULSION (4) --- (None) > --- UTILITY (2) ------ High-capacity Storage Unit > --- WEAPON (2) ------- Heavy Assault Rifle Improved Light Cannon > --- INVENTORY (20) --- Light Ion Engine Faulty Heavy Ion Engine Light Treads Light Treads Flight Unit Disposable Heat Sink High-capacity Storage Unit Signal Interpreter Terrain Scan Processor Core Shielding High-powered Tractor Beam Light Assault Rifle Peak State ------------ > --- POWER ------------ Heavy Ion Engine > --- PROPULSION ------- Compact Wheel Compact Wheel Compact Wheel Compact Wheel > --- UTILITY ---------- High-capacity Storage Unit Improved Terrain Scanner > --- WEAPON ----------- Assault Rifle Assault Rifle > --- INVENTORY -------- Light Ion Engine Light Treads Light Treads High-capacity Storage Unit Signal Interpreter Weapon Shielding Light Assault Rifle [Rating: 13] Favorites ----------- Power Ion Engine Engine Ion Engine Propulsion Compact Wheel Treads Light Treads Wheel Compact Wheel Utility High-capacity Storage Unit Device Improved Terrain Scanner Storage High-capacity Storage Unit Protection Weapon Shielding Weapon Assault Rifle Energy Gun Beam Rifle Ballistic Gun Assault Rifle Ballistic Cannon Light Cannon Build | -11 -10 -9 ------- Run | Yrd Mat Mat Slots Evolved 2 | . . 2 Power . | . . . Propulsion 2 | . . 2 Utility . | . . . Weapon . | . . . Parts Attached 24 | 7 4 13 Power 5 | 1 1 3 Engine 5 | 1 1 3 Core . | . . . Reactor . | . . . Propulsion 6 | 2 . 4 Treads 2 | 2 . . Leg . | . . . Wheel 4 | . . 4 Hover . | . . . Flight . | . . . Utility 5 | 2 2 1 Device 1 | . 1 . Storage 3 | 2 1 . Processor . | . . . Hackware . | . . . Protection 1 | . . 1 Artifact . | . . . Weapon 8 | 2 1 5 Energy Gun 1 | . . 1 Energy Cannon . | . . . Ballistic Gun 5 | 2 1 2 Ballistic Cannon 2 | . . 2 Launcher . | . . . Special Weapon . | . . . Impact Weapon . | . . . Slashing Weapon . | . . . Piercing Weapon . | . . . Special Melee Weapon . | . . . Unidentified Prototypes 1 | . . 1 Parts Lost 13 | . . 13 Power 2 | . . 2 Propulsion 4 | . . 4 Utility 2 | . . 2 Weapon 5 | . . 5 Highest Loss Streak 6 | . . 6 To Critical Strikes . | . . . Average Slot Usage (%) 84 | . 99 73 Engine 9 | . 13 6 Treads 12 | . 28 . Wheel 15 | . . 27 Device 6 | . 9 4 Storage 14 | . 18 11 Protection 3 | . . 5 Energy Gun 2 | . . 3 Ballistic Gun 19 | . 28 13 Naked Turns . | . . . Heaviest Build 53 | 18 50 53 Greatest Support 64 | 40 40 64 Greatest Overweight (x) 14 | . 1 14 Average Overweight (x) . | . . . Largest Inventory Capacity 20 | 8 20 20 Average Capacity 15 | 7 14 20 Most Carried 16 | 8 9 16 Average Carried 8 | 4 7 11 Final Capacity 20 | 8 20 20 Final Carried 12 | 7 8 12 Class Distribution -------------------- 100% | Mutant Dominant Class ---------------- Mutant | -10/Materials Mutant | -9/Materials Resources | -11 -10 -9 ----------- Run | Yrd Mat Mat Matter Collected 647 | 268 176 203 Remotely . | . . . Salvage Created 907 | 134 310 463 Parts 71 | 11 21 39 Haulers Intercepted . | . . . Recyclers Shooed 1 | . . 1 Parts Field Recycled . | . . . Retrieved Matter . | . . . Parts Self-Destructed . | . . . Prevented . | . . . Kills | -11 -10 -9 ------- Run | Yrd Mat Mat Combat Hostiles Destroyed 25 | . 11 14 Guns 22 | . 11 11 Cannons 3 | . . 3 Classes Destroyed 7 | 3 3 1 Worker 2 | 1 . 1 Tunneler 1 | 1 . . Recycler 2 | 1 . 1 Watcher 3 | . 1 2 Swarmer 16 | . 6 10 Grunt 5 | . 5 . Sentry 4 | . . 4 Best Kill Streak 8 | 2 4 8 Combat Bots Only 6 | . 4 6 Max Kills in Single Turn 2 | 1 2 2 Gunslinging 1 | . 1 1 Exploded . | . . . Melee . | . . . Uniques/NPCs Destroyed . | . . . Combat | -11 -10 -9 -------- Run | Yrd Mat Mat Hostile Shots Fired 249 | . 44 205 Missed 78 | . 12 66 Damage Taken 1583 | . 325 1258 Core 491 | . 86 405 Absorbed by Shields . | . . . Redirected to Shielding 50 | . . 50 Core Remaining (%) 82 | 100 65 . Volleys Fired 103 | 7 33 63 Largest 2 | 2 2 2 Hottest 76 | 40 40 76 Shots Fired 184 | 14 66 104 Gun 171 | 14 66 91 Cannon 13 | . . 13 Launcher . | . . . Special . | . . . Kinetic 156 | 14 66 76 Thermal 28 | . . 28 Explosive . | . . . Electromagnetic . | . . . Robot Hit Streak 12 | 2 8 12 Robot Miss Streak 8 | 2 4 8 Penetration Max . | . . . Secondary Targets 9 | . 5 4 Max Gunslinging Chain 1 | . 1 1 Shots Hit Robots 103 | 6 42 55 Core Hits 45 | 5 17 23 Critical Kills . | . . . Critical Parts Destroyed 2 | . 1 1 Critical Strikes 4 | . 1 3 Burn 2 | . . 2 Destroy 2 | . 1 1 Melee Attacks . | . . . Impact . | . . . Slashing . | . . . Piercing . | . . . Sneak Attacks . | . . . Combat Hostiles . | . . . Follow-up Attacks . | . . . Damage Inflicted 1264 | 59 457 748 Guns 1126 | 59 457 610 Cannons 138 | . . 138 Explosions . | . . . Melee . | . . . Ramming . | . . . Kinetic 1032 | 59 457 516 Thermal 232 | . . 232 Explosive . | . . . Electromagnetic . | . . . Impact . | . . . Slashing . | . . . Piercing . | . . . Highest Corruption 2 | . 2 . Average Corruption 2 | . 2 . Corruption Purged . | . . . Corruption Blocked . | . . . Effects 5 | . 5 . Heat Flow Errors 1 | . 1 . Energy Discharges 2 | . 2 . Data Loss (major) 2 | . 2 . Overload Shots . | . . . Overflow Damage . | . . . Projectiles . | . . . Explosions . | . . . Melee . | . . . Knockbacks . | . . . Impact . | . . . Kinetic . | . . . Secondary . | . . . Self-Inflicted Damage . | . . . Shots . | . . . Rammed . | . . . Targets Rammed . | . . . Kicked . | . . . Crushed . | . . . Highest Temperature 104 | . 104 81 Average Temperature 22 | . 22 22 Received Heat Transfer 225 | . 126 99 Siege Activations . | . . . Robots Corrupted . | . . . Combat Hostiles . | . . . Parts Fried . | . . . Impact Corruptions . | . . . Robots Melted . | . . . Combat Hostiles . | . . . Parts Melted 1 | . . 1 Heat Transferred 740 | . . 740 Parts Sabotaged . | . . . Parts Stolen . | . . . Parts Stripped . | . . . Power Chain Reactions . | . . . Alert | -11 -10 -9 ------- Run | Yrd Mat Mat Peak Influence 342 | 15 321 342 Initial 135 | . 9 135 Average 158 | 6 141 229 Maximum Alert Level 1 | . 1 1 Low Security (%) 63 | 100 74 40 Level 1 36 | . 25 59 Level 2 . | . . . Level 3 . | . . . Level 4 . | . . . Level 5 . | . . . High Security . | . . . Max Security . | . . . Squads Dispatched 3 | . 2 1 Investigation 1 | . 1 . Extermination . | . . . Reinforcement 2 | . 1 1 Assault . | . . . Garrison . | . . . Intercept . | . . . Searches Triggered . | . . . Construction Impeded . | . . . Haulers Reinforced . | . . . Active Scanning Responses . | . . . Cargo Convoy Interrupts . | . . . Stealth | -11 -10 -9 --------- Run | Yrd Mat Mat Distress Signals 6 | . 4 2 Communications Jammed . | . . . Distress Signals . | . . . Times Spotted 47 | . 17 30 Peak Tracking Total 7 | . 7 6 Tactical Retreats 5 | . 1 4 Traps | -11 -10 -9 ------- Run | Yrd Mat Mat Traps Triggered 2 | . 2 . Indirectly . | . . . Trap Hack Attempts . | . . . Triggered . | . . . Disarmed . | . . . Reprogrammed . | . . . Reused . | . . . Traps Extracted . | . . . Installed . | . . . Triggered . | . . . Machines | -11 -10 -9 ---------- Run | Yrd Mat Mat Machines Disabled . | . . . Max in Single Turn . | . . . Machines Repaired . | . . . Machines Dismantled . | . . . Machines Sabotaged . | . . . Overloaded Fab Kills . | . . . Hacking | -11 -10 -9 --------- Run | Yrd Mat Mat Machines Accessed 2 | . 1 1 Terminals 2 | . 1 1 Fabricators . | . . . Repair Stations . | . . . Recycling Units . | . . . Scanalyzers . | . . . Garrison Access . | . . . Total Hacks 5 | . 2 3 Successful . | . . . Failed 5 | . 2 3 Catastrophic 1 | . 1 . Database Lockouts . | . . . Manual . | . . . Terminals 5 | . 2 3 Fabricators . | . . . Repair Stations . | . . . Recycling Units . | . . . Scanalyzers . | . . . Garrison Access . | . . . Terminal Hacks . | . . . Fabricator Hacks . | . . . Repair Station Hacks . | . . . Recycling Unit Hacks . | . . . Scanalyzer . | . . . Garrison Access Hacks . | . . . Unauthorized Hacks . | . . . Terminals . | . . . Fabricators . | . . . Repair Stations . | . . . Recycling Units . | . . . Scanalyzers . | . . . Garrison Access . | . . . Data Cores Recovered . | . . . Used . | . . . Hacking Detections 2 | . 1 1 Full Trace Events 2 | . 1 1 Feedback Events . | . . . Feedback Blocked . | . . . Robot Schematics Acquired . | . . . Robots Built . | . . . Authchips . | . . . Time . | . . . Total Robot Build Rating . | . . . Part Schematics Acquired . | . . . Parts Built . | . . . Authchips . | . . . Time . | . . . Total Part Build Rating . | . . . Parts Repaired . | . . . Time . | . . . Parts Recycled . | . . . Recycled Matter . | . . . Retrieved Matter . | . . . Retrieved Components . | . . . Parts Scanalyzed . | . . . Part Schematics Acquired . | . . . Parts Damaged . | . . . Bothacking | -11 -10 -9 ------------ Run | Yrd Mat Mat Used RIF Installer . | . . . Robots Hacked . | . . . Non-combat . | . . . Combat . | . . . Robot Hacks Applied . | . . . Relay Couplers Released . | . . . Fabnet Peak Effective % . | . . . Robots Rewired . | . . . Allies Hacked . | . . . Hacks Repelled . | . . . Allies | -11 -10 -9 -------- Run | Yrd Mat Mat Total Allies . | . . . Largest Group . | . . . Highest-Rated Group . | . . . Highest-Rated Ally . | . . . Total Orders . | . . . Ally Attacks . | . . . Total Damage . | . . . Kills . | . . . Allies Corrupted . | . . . Allies Melted . | . . . Intel | -11 -10 -9 ------- Run | Yrd Mat Mat Robot Analysis Total . | . . . Derelict Logs Recovered . | . . . Drone Launches . | . . . Drone Recoveries . | . . . Exploration | -11 -10 -9 ------------- Run | Yrd Mat Mat Turns Passed 1019 | 186 353 480 Spaces Moved 435 | 94 130 211 Core 15 | 6 . 9 Treads 218 | 88 130 . Legs . | . . . Wheels 202 | . . 202 Hover . | . . . Flight . | . . . Fastest Speed 50 | 50 160 100 Average Speed 153 | 152 191 131 Slowest Speed 750 | 160 240 750 Overloaded Moves . | . . . Propulsion Burnouts . | . . . Robots Hopped . | . . . Cave-ins Triggered . | . . . Exploration Rate (%) 23 | 6 33 30 Regions Visited 2 Branch Regions . Pre-discovered Areas . | . . . Known Exits Taken . | . . . Unknown Exits Taken 2 | 1 1 . Scrap Searched . | . . . Spaces Dug . | . . . Terrain Destroyed . | . . . Melee . | . . . Projectile . | . . . AOE . | . . . Terrain Rammed . | . . . Walls Destroyed . | . . . Machines Disabled . | . . . Actions | -11 -10 -9 --------- Run | Yrd Mat Mat Total 613 | 125 175 313 Wait 13 | . . 13 Move 433 | 93 129 211 Hop . | . . . Pick Up 35 | 16 6 13 Fast Attach 1 | . 1 . Attach 18 | 7 2 9 Detach . | . . . Swap 5 | . 1 4 Drop 5 | 2 3 . Fire 103 | 7 33 63 Melee . | . . . Ram . | . . . Kick . | . . . Crush . | . . . Escape Stasis . | . . . Rewire . | . . . Trap . | . . . Miscellaneous . | . . . Route ------- -11/Scrapyard -10/Materials -9/Materials History --------- Turn | Location | Event 12 | -11/Scrapyard | Discovered new exit (range 16) 187 | -11/Scrapyard | Entered Materials 302 | -10/Materials | Build established: Mutant 510 | -10/Materials | Discovered new exit (range 13) 540 | -10/Materials | Entered another Materials area 540 | -9/Materials | Evolved 2 slots: Propulsion x2 776 | -9/Materials | Lost 4 parts (1p1n1u1w) 924 | -9/Materials | Core integrity fell below 50% 948 | -9/Materials | Lost 6 parts (1p3n2w) 1005 | -9/Materials | Core integrity fell below 20% 1020 | -9/Materials | Destroyed by S-10 Pest with Light Assault Rifle Last Messages --------------- W-16 Scout destroyed. K-01 Serf collects debris. S-10 Pest destroyed. K-01 Serf collects debris. R-06 Scavenger collects Flight Unit. K-01 Serf collects debris. R-06 Scavenger collects Lgt. Assault Rifle. K-01 Serf collects debris. S-10 Pest destroyed. R-06 Scavenger collects Lgt. Assault Rifle. Lgt. Cannon destroyed. K-01 Serf collects debris. Lgt. Assault Rifle destroyed. K-01 Serf collects debris. R-06 Scavenger collects Heat Sink. K-01 Serf collects debris. S-10 Pest destroyed. K-01 Serf collects debris. K-01 Serf destroyed. S-10 Pest destroyed. Map ----- +----------------------------------------------------+ | ?????# """ [! T"#??# #??## = # #?#???#???# | | ?????# """ [! ""#??# #???# != + #?#????##?# | | ?????# ######+##### != # #?#???????# | | ????? ] ## # # #?????????# | | ????#?# ## ######## ########### | | ??????# #### ## # ^ | | ??????#+???# ## + | | ???????????+ ## | # ^ | | ???????????# ## ###########+########## | | ???????????# ## #?????#?# #?????# | | ???????????# ## #???????# ""#?????# | | ???????????+ ?#####/#####???????# T"#???#?# | | ???????????# ?????#u##??????????# ""#?????# | | ???????????# ######[###??#?###### #?????# | | ?????????### ==t #????!!!!## #?????# | | ???????? #???! !########?????# | | ???????? #??? #????????????# | | ???????? u #### #?????????????# | | ???????? #?????????????+ | | ????????? ## ####Y % #?????????????# | | ??????????# ????# !!= #?????????????# | | ??????????# ?????# !!= #?????????????# | | ??????????#???????# !!= #?????????????? | | ??????????????????# #??????????????? | | ??????????????????# #??????????????? | | ??????????#???????# @ #??????????????? | | ??????????# ?????#r ! ! k#####??????????????? | | ???????????# #### !! #??????????????????? | | ???????????# !! #??????????????????? | | ???????????# % #??????????????????? | | ???????????# [ + ?????????????????? | | ???????????# !% !%k ** "T" # ???????????????? | | ???????????##+#####st=%% """ # [ ?????????????? | | ??????????????????#%[%#########? ???????????? | | ??????????????????# %!??????????? ??????????? | | ??????????????????# k ????????????####???????????? | | ??????????????????# s ???????????????????????????? | | ??????????????????# ???????????????????????????? | | ??????????????????# "???????????????????????????? | | ??????????????????# "%???????????????????????????? | | ??????????????????# "???????????????????????????? | | ??????????????????# ????????????????????????????? | | ??????????????????? ????????????????????????????? | | ?????????????????????????????????????????????????? | | ?????????????????????????????????????????????????? | | ?????????????????????????????????????????????????? | | ?????????????????????????????????????????????????? | | ?????????????????????????????????????????????????? | | ?????????????????????????????????????????????????? | | ?????????????????????????????????????????????????? | +----------------------------------------------------+ Best States ------------- Heat Dissipation 28 Energy Generation 12 Energy Capacity 265 Matter Stores 300 Matter Capacity 300 Sight Range 16 Terrain Scan Range 16 Terrain Scan Density 10 Weapon Shielding 33 Evasion (%) 40 Recoil Reduction 2 Item Schematics ----------------- None Robot Schematics ------------------ None Fabricated ------------ Nothing Alien Tech Used ----------------- None Achievements -------------- None Challenges ------------ None Game ------ Seed MissileMolecularWheel Manual? 0 Play Time 00:20:04 Cumulative 4.0 hours Start 2024.05.03 @ 00:40:23 End 2024.05.03 @ 01:02:03 Sessions 1 Manual Loads 0 Difficulty Rogue Special Mode None Game No. 6 Rogue 6 Adventurer 0 Explorer 0 Win Type - Total 0 Types 0/0/0/0/0/0/0/0/0 Lore% 9 Gallery% 7 Achievement% 6 Wizard Run 0 Options --------- Layout 1 ASCII 0 Keyboard 0 Movement Mouse Keybinds 0 Fullscreen 2 Font 24/Crisp Map View 25x17 Zoom Use 97% Tactical HUD 0 Map Filters NONE Filters NONE Steam 1 RUN: 81635ccd-d830-4843-ac62-14ca24df6639